[Event "Titled Tuesday Blitz April 12 Early 2022"]
[White "Lamaze, Simon"]
[Black "Onslow, Alfie"]
[WhiteFideId "36069264"]
[BlackFideId "436976"]
[WhiteElo "1999"]
[BlackElo "1884"]
[Result "1-0"]
[Round "02"]
[TimeControl "180+1"]
[Date "2022.04.13"]
[WhiteClock "0:00:34"]
[BlackClock "0:00:04"]

1. d4 {[%clk 0:03:00]}  Nf6 {[%clk 0:02:59]} 2. c4 {[%clk 0:02:59]}  c5 {[%clk 0:03:00]} 3. d5 {[%clk 0:02:59]}  b5 {[%clk 0:03:00]} 4. cxb5 {[%clk 0:03:00]}  a6 {[%clk 0:03:00]} 5. bxa6 {[%clk 0:03:01]}  g6 {[%clk 0:03:00]} 6. Nc3 {[%clk 0:03:01]}  Bg7 {[%clk 0:02:56]} 7. e4 {[%clk 0:03:01]}  O-O {[%clk 0:02:57]} 8. a7 {[%clk 0:03:00]}  Rxa7 {[%clk 0:02:57]} 9. Nf3 {[%clk 0:03:00]}  d6 {[%clk 0:02:54]} 10. Be2 {[%clk 0:03:00]}  Ba6 {[%clk 0:02:50]} 11. O-O {[%clk 0:02:59]}  Qa5 {[%clk 0:02:50]} 12. Bd2 {[%clk 0:02:57]}  Bxe2 {[%clk 0:02:47]} 13. Qxe2 {[%clk 0:02:57]}  Qa6 {[%clk 0:02:47]} 14. Qxa6 {[%clk 0:02:45]}  Nxa6 {[%clk 0:02:48]} 15. Rfe1 {[%clk 0:02:42]}  Rb8 {[%clk 0:02:47]} 16. b3 {[%clk 0:02:42]}  Nb4 {[%clk 0:02:45]} 17. Re2 {[%clk 0:02:32]}  Rba8 {[%clk 0:02:14]} 18. a4 {[%clk 0:02:29]}  Nd7 {[%clk 0:02:06]} 19. Rb1 {[%clk 0:02:20]}  Rb7 {[%clk 0:01:51]} 20. Nb5 {[%clk 0:02:00]}  Nd3 {[%clk 0:01:43]} 21. Bg5 {[%clk 0:01:59]}  Kf8 {[%clk 0:01:29]} 22. Rd1 {[%clk 0:01:43]}  c4 {[%clk 0:01:24]} 23. bxc4 {[%clk 0:01:38]}  N3c5 {[%clk 0:01:24]} 24. Ra2 {[%clk 0:01:13]}  Nb6 {[%clk 0:01:20]} 25. e5 {[%clk 0:00:59]}  Nxc4 {[%clk 0:01:13]} 26. exd6 {[%clk 0:01:00]}  Nxd6 {[%clk 0:01:10]} 27. Nxd6 {[%clk 0:01:00]}  exd6 {[%clk 0:01:11]} 28. a5 {[%clk 0:01:00]}  Rb5 {[%clk 0:00:59]} 29. Bf4 {[%clk 0:00:51]}  Ke7 {[%clk 0:00:56]} 30. Re1+ {[%clk 0:00:47]}  Kd7 {[%clk 0:00:56]} 31. Rae2 {[%clk 0:00:47]}  Bf6 {[%clk 0:00:53]} 32. Bg5 {[%clk 0:00:45]}  Be5 {[%clk 0:00:39]} 33. Nxe5+ {[%clk 0:00:36]}  dxe5 {[%clk 0:00:40]} 34. Rxe5 {[%clk 0:00:37]}  Nd3 {[%clk 0:00:41]} 35. Re7+ {[%clk 0:00:37]}  Kd6 {[%clk 0:00:41]} 36. Rd1 {[%clk 0:00:38]}  Rxd5 {[%clk 0:00:36]} 37. Rxf7 {[%clk 0:00:35]}  Raxa5 {[%clk 0:00:21]} 38. Be3 {[%clk 0:00:33]}  h5 {[%clk 0:00:17]} 39. Rf6+ {[%clk 0:00:33]}  Ke5 {[%clk 0:00:17]} 40. Rxg6 {[%clk 0:00:34]}  Nb2 {[%clk 0:00:10]} 41. Rg5+ {[%clk 0:00:31]}  Ke4 {[%clk 0:00:10]} 42. Rgxd5 {[%clk 0:00:31]}  Rxd5 {[%clk 0:00:09]} 43. Rxd5 {[%clk 0:00:32]}  Kxd5 {[%clk 0:00:10]} 44. h3 {[%clk 0:00:32]}  Ke4 {[%clk 0:00:10]} 45. Kh2 {[%clk 0:00:33]}  Nd1 {[%clk 0:00:10]} 46. Kg3 {[%clk 0:00:34]}  Kf5 {[%clk 0:00:07]} 47. Kh4 {[%clk 0:00:33]}  Kg6 {[%clk 0:00:08]} 48. g4 {[%clk 0:00:34]}  Nc3 {[%clk 0:00:08]} 49. gxh5+ {[%clk 0:00:33]}  Kh7 {[%clk 0:00:08]} 50. h6 {[%clk 0:00:34]}  Nd5 {[%clk 0:00:09]} 51. Kg5 {[%clk 0:00:34]}  Ne7 {[%clk 0:00:09]} 52. Kf6 {[%clk 0:00:34]}  Ng8+ {[%clk 0:00:10]} 53. Ke6 {[%clk 0:00:34]}  Kg6 {[%clk 0:00:09]} 54. h4 {[%clk 0:00:33]}  Kh7 {[%clk 0:00:08]} 55. h5 {[%clk 0:00:32]}  Kh8 {[%clk 0:00:09]} 56. Bg5 {[%clk 0:00:31]}  Kh7 {[%clk 0:00:09]} 57. f4 {[%clk 0:00:31]}  Kh8 {[%clk 0:00:09]} 58. f5 {[%clk 0:00:32]}  Kh7 {[%clk 0:00:10]} 59. f6 {[%clk 0:00:32]}  Nxh6 {[%clk 0:00:07]} 60. Bxh6 {[%clk 0:00:32]}  Kxh6 {[%clk 0:00:07]} 61. f7 {[%clk 0:00:33]}  Kg7 {[%clk 0:00:07]} 62. Ke7 {[%clk 0:00:33]}  Kh7 {[%clk 0:00:07]} 63. Ke8 {[%clk 0:00:33]}  Kh6 {[%clk 0:00:05]} 64. f8=Q+ {[%clk 0:00:34]}  Kh7 {[%clk 0:00:06]} 65. Qf6 {[%clk 0:00:32]}  Kg8 {[%clk 0:00:04]} 66. h6 {[%clk 0:00:33]}  Kh7 {[%clk 0:00:04]} 67. Qg7# {[%clk 0:00:34]} 1-0


[Site "https://www.chess.com"]

[Event "Titled Tuesday Blitz April 12 Early 2022"]
[White "Maltsevskaya, Aleksandra"]
[Black "Narayanan.S.L"]
[WhiteFideId "24174041"]
[BlackFideId "5058422"]
[WhiteElo "2235"]
[BlackElo "2494"]
[Result "0-1"]
[Round "02"]
[TimeControl "180+1"]
[Date "2022.04.12"]
[WhiteClock "0:00:01"]
[BlackClock "0:00:10"]

1. e4 {[%clk 0:02:46]}  g6 {[%clk 0:03:00]} 2. d4 {[%clk 0:02:46]}  Bg7 {[%clk 0:03:00]} 3. Nf3 {[%clk 0:02:44]}  a6 {[%clk 0:03:00]} 4. h4 {[%clk 0:02:41]}  h6 {[%clk 0:03:00]} 5. e5 {[%clk 0:02:40]}  d6 {[%clk 0:03:00]} 6. Bd3 {[%clk 0:02:37]}  Bg4 {[%clk 0:02:59]} 7. Bf4 {[%clk 0:02:33]}  Nc6 {[%clk 0:02:59]} 8. exd6 {[%clk 0:02:25]}  exd6 {[%clk 0:02:58]} 9. Nbd2 {[%clk 0:02:13]}  Nxd4 {[%clk 0:02:54]} 10. O-O {[%clk 0:02:09]}  Ne7 {[%clk 0:02:53]} 11. c3 {[%clk 0:01:55]}  Nxf3+ {[%clk 0:02:52]} 12. Nxf3 {[%clk 0:01:56]}  O-O {[%clk 0:02:53]} 13. Re1 {[%clk 0:01:55]}  Nc6 {[%clk 0:02:46]} 14. Be4 {[%clk 0:01:55]}  Bxf3 {[%clk 0:02:43]} 15. Qxf3 {[%clk 0:01:56]}  Qxh4 {[%clk 0:02:43]} 16. Bg3 {[%clk 0:01:49]}  Qg5 {[%clk 0:02:29]} 17. Bxc6 {[%clk 0:01:47]}  bxc6 {[%clk 0:02:29]} 18. Qxc6 {[%clk 0:01:48]}  Ra7 {[%clk 0:02:25]} 19. Re2 {[%clk 0:01:38]}  Qb5 {[%clk 0:02:23]} 20. Qf3 {[%clk 0:01:32]}  Raa8 {[%clk 0:02:22]} 21. Rae1 {[%clk 0:01:31]}  Rae8 {[%clk 0:02:22]} 22. b3 {[%clk 0:01:23]}  Rxe2 {[%clk 0:02:21]} 23. Rxe2 {[%clk 0:01:24]}  Re8 {[%clk 0:02:17]} 24. c4 {[%clk 0:01:23]}  Qd7 {[%clk 0:02:16]} 25. Rxe8+ {[%clk 0:01:15]}  Qxe8 {[%clk 0:02:17]} 26. Qb7 {[%clk 0:01:15]}  Bd4 {[%clk 0:01:34]} 27. Kh2 {[%clk 0:01:05]}  Bb6 {[%clk 0:01:16]} 28. Qxa6 {[%clk 0:00:58]}  g5 {[%clk 0:01:16]} 29. Qb5 {[%clk 0:00:52]}  Qe2 {[%clk 0:01:12]} 30. Qf5 {[%clk 0:00:49]}  Qxa2 {[%clk 0:01:06]} 31. Qf6 {[%clk 0:00:49]}  Qxb3 {[%clk 0:01:00]} 32. Qxh6 {[%clk 0:00:45]}  Qb2 {[%clk 0:00:34]} 33. Qxg5+ {[%clk 0:00:38]}  Qg7 {[%clk 0:00:35]} 34. Qd8+ {[%clk 0:00:38]}  Kh7 {[%clk 0:00:35]} 35. Bh4 {[%clk 0:00:29]}  Qe5+ {[%clk 0:00:34]} 36. Kg1 {[%clk 0:00:20]}  Qf4 {[%clk 0:00:24]} 37. Qe7 {[%clk 0:00:03]}  Qxc4 {[%clk 0:00:22]} 38. Bf6 {[%clk 0:00:02]}  Qc1+ {[%clk 0:00:17]} 39. Kh2 {[%clk 0:00:02]}  Qf4+ {[%clk 0:00:18]} 40. Kh3 {[%clk 0:00:03]}  Qf5+ {[%clk 0:00:18]} 41. Kh2 {[%clk 0:00:03]}  Kg6 {[%clk 0:00:18]} 42. Bh4 {[%clk 0:00:02]}  Qf4+ {[%clk 0:00:18]} 43. Bg3 {[%clk 0:00:01]}  Qh6+ {[%clk 0:00:19]} 44. Kg1 {[%clk 0:00:02]}  Qg5 {[%clk 0:00:19]} 45. Qe4+ {[%clk 0:00:01]}  Kg7 {[%clk 0:00:20]} 46. Qf3 {[%clk 0:00:01]}  Qc1+ {[%clk 0:00:19]} 47. Kh2 {[%clk 0:00:01]}  Qh6+ {[%clk 0:00:20]} 48. Kg1 {[%clk 0:00:02]}  Qf6 {[%clk 0:00:21]} 49. Bf4 {[%clk 0:00:02]}  Qg6 {[%clk 0:00:17]} 50. Qc3+ {[%clk 0:00:01]}  Kg8 {[%clk 0:00:15]} 51. Qf3 {[%clk 0:00:01]}  Bd4 {[%clk 0:00:14]} 52. Qa8+ {[%clk 0:00:01]}  Kg7 {[%clk 0:00:15]} 53. Qf3 {[%clk 0:00:02]}  c5 {[%clk 0:00:15]} 54. Qc6 {[%clk 0:00:01]}  Qb1+ {[%clk 0:00:14]} 55. Kh2 {[%clk 0:00:01]}  Qh7+ {[%clk 0:00:14]} 56. Kg1 {[%clk 0:00:01]}  Qh4 {[%clk 0:00:10]} 0-1


[Site "https://www.chess.com"]

[Event "Titled Tuesday Blitz April 12 Early 2022"]
[White "Mangialardo, Tiago Carvalho"]
[Black "Buscar, Michael"]
[WhiteFideId "2130718"]
[BlackFideId "2603616"]
[WhiteElo "2042"]
[BlackElo "2010"]
[Result "0-1"]
[Round "02"]
[TimeControl "180+1"]
[Date "2022.04.13"]
[WhiteClock "0:00:01"]
[BlackClock "0:00:34"]

1. e4 {[%clk 0:02:58]}  c5 {[%clk 0:02:59]} 2. Nf3 {[%clk 0:02:57]}  e6 {[%clk 0:03:00]} 3. c3 {[%clk 0:02:56]}  Nc6 {[%clk 0:02:55]} 4. d4 {[%clk 0:02:56]}  cxd4 {[%clk 0:02:56]} 5. cxd4 {[%clk 0:02:57]}  a6 {[%clk 0:02:56]} 6. d5 {[%clk 0:02:57]}  Nb8 {[%clk 0:02:53]} 7. Nc3 {[%clk 0:02:56]}  d6 {[%clk 0:02:53]} 8. a4 {[%clk 0:02:54]}  e5 {[%clk 0:02:52]} 9. Be3 {[%clk 0:02:43]}  f5 {[%clk 0:02:48]} 10. a5 {[%clk 0:02:26]}  f4 {[%clk 0:02:32]} 11. Bb6 {[%clk 0:02:25]}  Qf6 {[%clk 0:02:33]} 12. Nd2 {[%clk 0:01:58]}  Nd7 {[%clk 0:02:23]} 13. Qa4 {[%clk 0:01:51]}  g5 {[%clk 0:02:16]} 14. b4 {[%clk 0:01:32]}  Kf7 {[%clk 0:02:12]} 15. Bc7 {[%clk 0:01:30]}  g4 {[%clk 0:01:52]} 16. Qa3 {[%clk 0:01:16]}  h5 {[%clk 0:01:46]} 17. Nc4 {[%clk 0:01:08]}  f3 {[%clk 0:01:36]} 18. b5 {[%clk 0:00:34]}  Rh6 {[%clk 0:01:21]} 19. bxa6 {[%clk 0:00:30]}  Rxa6 {[%clk 0:01:20]} 20. Ne3 {[%clk 0:00:18]}  fxg2 {[%clk 0:01:12]} 21. Nxg2 {[%clk 0:00:18]}  Qf3 {[%clk 0:01:05]} 22. Rg1 {[%clk 0:00:17]}  Rf6 {[%clk 0:00:59]} 23. Qb2 {[%clk 0:00:14]}  Nc5 {[%clk 0:00:54]} 24. Nh4 {[%clk 0:00:13]}  Nd3+ {[%clk 0:00:48]} 25. Bxd3 {[%clk 0:00:12]}  Qxd3 {[%clk 0:00:48]} 26. Nf5 {[%clk 0:00:07]}  Bxf5 {[%clk 0:00:47]} 27. exf5 {[%clk 0:00:04]}  Rxf5 {[%clk 0:00:46]} 28. Ne2 {[%clk 0:00:01]}  Qxd5 {[%clk 0:00:35]} 29. Ng3 {[%clk 0:00:01]}  Rf3 {[%clk 0:00:34]} 0-1


[Site "https://www.chess.com"]

[Event "Titled Tuesday Blitz April 12 Early 2022"]
[White "Manukyan, Sargis A."]
[Black "Adelman, Charles"]
[WhiteFideId "13303970"]
[BlackFideId "2003597"]
[WhiteElo "2187"]
[BlackElo "2269"]
[Result "0-1"]
[Round "02"]
[TimeControl "180+1"]
[Date "2022.04.13"]
[WhiteClock "0:00:03"]
[BlackClock "0:00:41"]

1. d4 {[%clk 0:03:00]}  Nf6 {[%clk 0:02:59]} 2. e3 {[%clk 0:03:01]}  c5 {[%clk 0:02:59]} 3. Nf3 {[%clk 0:03:02]}  b6 {[%clk 0:02:59]} 4. Be2 {[%clk 0:03:02]}  Bb7 {[%clk 0:02:59]} 5. O-O {[%clk 0:03:03]}  g6 {[%clk 0:03:00]} 6. Nbd2 {[%clk 0:03:02]}  Bg7 {[%clk 0:03:00]} 7. b3 {[%clk 0:03:02]}  O-O {[%clk 0:03:00]} 8. Bb2 {[%clk 0:03:02]}  d6 {[%clk 0:03:01]} 9. c4 {[%clk 0:03:00]}  Nbd7 {[%clk 0:03:01]} 10. Qc2 {[%clk 0:02:59]}  Rc8 {[%clk 0:02:58]} 11. Rac1 {[%clk 0:02:58]}  cxd4 {[%clk 0:02:58]} 12. exd4 {[%clk 0:02:56]}  d5 {[%clk 0:02:58]} 13. Qb1 {[%clk 0:02:55]}  dxc4 {[%clk 0:02:53]} 14. bxc4 {[%clk 0:02:54]}  Ne8 {[%clk 0:02:50]} 15. Rfd1 {[%clk 0:02:51]}  Rc7 {[%clk 0:02:47]} 16. Qa1 {[%clk 0:02:50]}  Qa8 {[%clk 0:02:46]} 17. d5 {[%clk 0:02:46]}  Bxb2 {[%clk 0:02:42]} 18. Qxb2 {[%clk 0:02:47]}  Nd6 {[%clk 0:02:33]} 19. Ng5 {[%clk 0:02:40]}  b5 {[%clk 0:02:27]} 20. cxb5 {[%clk 0:02:17]}  Rxc1 {[%clk 0:02:27]} 21. Rxc1 {[%clk 0:02:10]}  Bxd5 {[%clk 0:02:27]} 22. Bf3 {[%clk 0:02:06]}  Bxf3 {[%clk 0:02:22]} 23. Ngxf3 {[%clk 0:01:59]}  Rc8 {[%clk 0:02:21]} 24. Rxc8+ {[%clk 0:01:55]}  Qxc8 {[%clk 0:02:21]} 25. g3 {[%clk 0:01:52]}  Qc5 {[%clk 0:02:14]} 26. a4 {[%clk 0:01:49]}  Nb6 {[%clk 0:02:08]} 27. Qb3 {[%clk 0:01:25]}  Qc1+ {[%clk 0:02:00]} 28. Kg2 {[%clk 0:01:25]}  Qa1 {[%clk 0:02:00]} 29. Qe3 {[%clk 0:00:51]}  Nf5 {[%clk 0:01:46]} 30. Qc5 {[%clk 0:00:47]}  Qxa4 {[%clk 0:01:43]} 31. Ng5 {[%clk 0:00:36]}  Qd4 {[%clk 0:01:29]} 32. Qc2 {[%clk 0:00:26]}  Qd5+ {[%clk 0:01:28]} 33. Nde4 {[%clk 0:00:25]}  Qxb5 {[%clk 0:01:23]} 34. g4 {[%clk 0:00:21]}  Nd6 {[%clk 0:01:20]} 35. Nxd6 {[%clk 0:00:19]}  Qxg5 {[%clk 0:01:17]} 36. Ne4 {[%clk 0:00:15]}  Qxg4+ {[%clk 0:01:16]} 37. Ng3 {[%clk 0:00:15]}  Qd7 {[%clk 0:01:14]} 38. h3 {[%clk 0:00:14]}  a5 {[%clk 0:01:08]} 39. h4 {[%clk 0:00:14]}  h5 {[%clk 0:01:04]} 40. Qb2 {[%clk 0:00:13]}  Qc6+ {[%clk 0:01:02]} 41. Kh2 {[%clk 0:00:12]}  a4 {[%clk 0:01:02]} 42. Qb4 {[%clk 0:00:11]}  Nd5 {[%clk 0:00:59]} 43. Qb8+ {[%clk 0:00:10]}  Kg7 {[%clk 0:00:57]} 44. Qe5+ {[%clk 0:00:11]}  Nf6 {[%clk 0:00:56]} 45. Qxe7 {[%clk 0:00:11]}  Qa6 {[%clk 0:00:47]} 46. Qa3 {[%clk 0:00:10]}  Ng4+ {[%clk 0:00:42]} 47. Kg2 {[%clk 0:00:10]}  Qc6+ {[%clk 0:00:41]} 48. f3 {[%clk 0:00:11]}  Qc2+ {[%clk 0:00:41]} 49. Kg1 {[%clk 0:00:03]}  Qf2+ {[%clk 0:00:41]} 50. Kh1 {[%clk 0:00:03]}  Qh2# {[%clk 0:00:41]} 0-1


[Site "https://www.chess.com"]

[Event "Titled Tuesday Blitz April 12 Early 2022"]
[White "Martinez Alcantara, Jose Eduardo"]
[Black "Ozer, Omer Faruk"]
[WhiteFideId "3805662"]
[BlackFideId "6354564"]
[WhiteElo "2690"]
[BlackElo "2050"]
[Result "1-0"]
[Round "02"]
[TimeControl "180+1"]
[Date "2022.04.12"]
[WhiteClock "0:01:03"]
[BlackClock "0:00:06"]

1. e4 {[%clk 0:03:00]}  e5 {[%clk 0:02:59]} 2. Nf3 {[%clk 0:03:01]}  Nc6 {[%clk 0:02:59]} 3. Bb5 {[%clk 0:03:02]}  a6 {[%clk 0:02:59]} 4. Ba4 {[%clk 0:03:03]}  Nf6 {[%clk 0:02:59]} 5. d3 {[%clk 0:03:03]}  b5 {[%clk 0:02:57]} 6. Bb3 {[%clk 0:03:04]}  Bc5 {[%clk 0:02:57]} 7. c3 {[%clk 0:03:04]}  d6 {[%clk 0:02:56]} 8. h3 {[%clk 0:03:04]}  h6 {[%clk 0:02:56]} 9. Nbd2 {[%clk 0:03:03]}  O-O {[%clk 0:02:50]} 10. O-O {[%clk 0:03:03]}  Re8 {[%clk 0:02:46]} 11. Re1 {[%clk 0:03:03]}  a5 {[%clk 0:02:44]} 12. a4 {[%clk 0:02:59]}  b4 {[%clk 0:02:44]} 13. Bc4 {[%clk 0:02:57]}  Rb8 {[%clk 0:02:36]} 14. Bb5 {[%clk 0:02:56]}  Bd7 {[%clk 0:02:35]} 15. Nb3 {[%clk 0:02:50]}  Bb6 {[%clk 0:02:33]} 16. Be3 {[%clk 0:02:48]}  bxc3 {[%clk 0:02:31]} 17. bxc3 {[%clk 0:02:48]}  Ne7 {[%clk 0:02:28]} 18. Bxb6 {[%clk 0:02:42]}  cxb6 {[%clk 0:02:14]} 19. Bxd7 {[%clk 0:02:42]}  Nxd7 {[%clk 0:02:13]} 20. c4 {[%clk 0:02:40]}  Nc5 {[%clk 0:02:07]} 21. Qc2 {[%clk 0:02:19]}  Nc6 {[%clk 0:02:01]} 22. Qc3 {[%clk 0:02:18]}  Qd7 {[%clk 0:01:57]} 23. Reb1 {[%clk 0:02:09]}  Nb4 {[%clk 0:01:52]} 24. Nxc5 {[%clk 0:02:10]}  bxc5 {[%clk 0:01:53]} 25. Nd2 {[%clk 0:02:10]}  Rb7 {[%clk 0:01:46]} 26. Nf1 {[%clk 0:02:08]}  Reb8 {[%clk 0:01:43]} 27. Ne3 {[%clk 0:02:06]}  Nc6 {[%clk 0:01:42]} 28. Rb5 {[%clk 0:02:03]}  Nd4 {[%clk 0:01:41]} 29. Kh1 {[%clk 0:01:57]}  Nxb5 {[%clk 0:01:39]} 30. cxb5 {[%clk 0:01:58]}  Ra8 {[%clk 0:01:20]} 31. Nc4 {[%clk 0:01:52]}  Qd8 {[%clk 0:01:19]} 32. Re1 {[%clk 0:01:52]}  f6 {[%clk 0:01:16]} 33. Re3 {[%clk 0:01:52]}  d5 {[%clk 0:01:13]} 34. Nd2 {[%clk 0:01:44]}  Rc8 {[%clk 0:00:54]} 35. Rg3 {[%clk 0:01:42]}  Rd7 {[%clk 0:00:37]} 36. exd5 {[%clk 0:01:28]}  Rxd5 {[%clk 0:00:38]} 37. Nc4 {[%clk 0:01:28]}  Rd4 {[%clk 0:00:31]} 38. Nxa5 {[%clk 0:01:16]}  Rxa4 {[%clk 0:00:31]} 39. Qb3+ {[%clk 0:01:15]}  c4 {[%clk 0:00:30]} 40. Qxa4 {[%clk 0:01:14]}  cxd3 {[%clk 0:00:27]} 41. Nc6 {[%clk 0:01:11]}  d2 {[%clk 0:00:06]} 42. Nxd8 {[%clk 0:01:05]}  Rc1+ {[%clk 0:00:07]} 43. Kh2 {[%clk 0:01:05]}  d1=Q {[%clk 0:00:07]} 44. Qxd1 {[%clk 0:01:05]}  Rxd1 {[%clk 0:00:08]} 45. Ne6 {[%clk 0:01:03]}  g5 {[%clk 0:00:06]} 46. Rb3 {[%clk 0:01:03]}  Rd6 {[%clk 0:00:06]} 47. b6 {[%clk 0:01:03]} 1-0


[Site "https://www.chess.com"]

[Event "Titled Tuesday Blitz April 12 Early 2022"]
[White "Melaugh, Shane"]
[Black "Ohanyan, Emin"]
[WhiteFideId "2509580"]
[BlackFideId "13312022"]
[WhiteElo "1972"]
[BlackElo "1927"]
[Result "0-1"]
[Round "02"]
[TimeControl "180+1"]
[Date "2022.04.13"]
[WhiteClock "0:01:05"]
[BlackClock "0:00:02"]

1. c4 {[%clk 0:03:00]}  e5 {[%clk 0:02:24]} 2. Nc3 {[%clk 0:03:00]}  Nf6 {[%clk 0:02:19]} 3. Nf3 {[%clk 0:03:00]}  Nc6 {[%clk 0:02:18]} 4. e4 {[%clk 0:03:00]}  Bb4 {[%clk 0:02:13]} 5. d3 {[%clk 0:02:59]}  d6 {[%clk 0:02:09]} 6. h3 {[%clk 0:03:00]}  h6 {[%clk 0:02:07]} 7. Be2 {[%clk 0:02:59]}  O-O {[%clk 0:02:07]} 8. O-O {[%clk 0:02:57]}  a5 {[%clk 0:02:07]} 9. Be3 {[%clk 0:02:55]}  Bc5 {[%clk 0:01:51]} 10. Qd2 {[%clk 0:02:37]}  Be6 {[%clk 0:01:41]} 11. Nd5 {[%clk 0:02:35]}  Bxd5 {[%clk 0:01:32]} 12. cxd5 {[%clk 0:02:33]}  Nd4 {[%clk 0:01:32]} 13. Bxd4 {[%clk 0:02:32]}  Bxd4 {[%clk 0:01:33]} 14. Nxd4 {[%clk 0:02:32]}  exd4 {[%clk 0:01:33]} 15. Rac1 {[%clk 0:02:29]}  Nd7 {[%clk 0:01:27]} 16. Qf4 {[%clk 0:02:23]}  Nc5 {[%clk 0:01:09]} 17. Rc4 {[%clk 0:02:22]}  b5 {[%clk 0:00:43]} 18. Rxd4 {[%clk 0:02:22]}  Qe7 {[%clk 0:00:23]} 19. b4 {[%clk 0:01:59]}  Ne6 {[%clk 0:00:15]} 20. dxe6 {[%clk 0:01:58]}  fxe6 {[%clk 0:00:16]} 21. Qe3 {[%clk 0:01:50]}  e5 {[%clk 0:00:03]} 22. Rd5 {[%clk 0:01:49]}  c6 {[%clk 0:00:03]} 23. Rxb5 {[%clk 0:01:31]}  cxb5 {[%clk 0:00:03]} 24. bxa5 {[%clk 0:01:31]}  Rxa5 {[%clk 0:00:04]} 25. d4 {[%clk 0:01:32]}  Qa7 {[%clk 0:00:03]} 26. Qb3+ {[%clk 0:01:28]}  Kh8 {[%clk 0:00:03]} 27. dxe5 {[%clk 0:01:29]}  dxe5 {[%clk 0:00:03]} 28. Bxb5 {[%clk 0:01:29]}  Rxa2 {[%clk 0:00:03]} 29. Qg3 {[%clk 0:01:20]}  Rb2 {[%clk 0:00:02]} 30. Bc6 {[%clk 0:01:20]}  Qd4 {[%clk 0:00:02]} 31. Bd5 {[%clk 0:01:21]}  Qd2 {[%clk 0:00:02]} 32. Bc6 {[%clk 0:01:17]}  Qf4 {[%clk 0:00:01]} 33. Qxf4 {[%clk 0:01:16]}  Rxf4 {[%clk 0:00:02]} 34. Bd5 {[%clk 0:01:17]}  g5 {[%clk 0:00:02]} 35. g3 {[%clk 0:01:16]}  Rf6 {[%clk 0:00:02]} 36. Kg2 {[%clk 0:01:16]}  Kg7 {[%clk 0:00:02]} 37. Bc6 {[%clk 0:01:12]}  Rc2 {[%clk 0:00:02]} 38. Bd5 {[%clk 0:01:12]}  Rb2 {[%clk 0:00:03]} 39. g4 {[%clk 0:01:07]}  Rd2 {[%clk 0:00:02]} 40. Kg3 {[%clk 0:01:05]}  Rb6 {[%clk 0:00:02]} 41. f3 {[%clk 0:01:06]}  Rbb2 {[%clk 0:00:03]} 42. f4 {[%clk 0:01:05]}  Rd3+ {[%clk 0:00:01]} 43. Rf3 {[%clk 0:01:05]}  exf4# {[%clk 0:00:02]} 0-1


[Site "https://www.chess.com"]

[Event "Titled Tuesday Blitz April 12 Early 2022"]
[White "Mickiewicz, Piotr"]
[Black "Stanisz, Patryk"]
[WhiteFideId "1114891"]
[BlackFideId "1123106"]
[WhiteElo "2266"]
[BlackElo "1833"]
[Result "0-1"]
[Round "02"]
[TimeControl "180+1"]
[Date "2022.04.13"]
[WhiteClock "0:01:01"]
[BlackClock "0:00:16"]

1. Nf3 {[%clk 0:03:00]}  d5 {[%clk 0:02:59]} 2. g3 {[%clk 0:03:01]}  c6 {[%clk 0:02:58]} 3. Bg2 {[%clk 0:03:02]}  Bf5 {[%clk 0:02:58]} 4. O-O {[%clk 0:03:02]}  Nf6 {[%clk 0:02:58]} 5. d3 {[%clk 0:03:01]}  h6 {[%clk 0:02:59]} 6. Nbd2 {[%clk 0:03:00]}  e6 {[%clk 0:02:57]} 7. b3 {[%clk 0:03:00]}  Nbd7 {[%clk 0:02:55]} 8. Bb2 {[%clk 0:02:59]}  Be7 {[%clk 0:02:52]} 9. Re1 {[%clk 0:02:55]}  Bh7 {[%clk 0:02:46]} 10. a3 {[%clk 0:02:54]}  Qb6 {[%clk 0:02:38]} 11. e4 {[%clk 0:02:53]}  Bc5 {[%clk 0:02:31]} 12. Qe2 {[%clk 0:02:50]}  Ng4 {[%clk 0:02:28]} 13. d4 {[%clk 0:02:45]}  Be7 {[%clk 0:02:25]} 14. c4 {[%clk 0:02:43]}  dxe4 {[%clk 0:02:17]} 15. Nxe4 {[%clk 0:02:42]}  Qxb3 {[%clk 0:02:10]} 16. Rab1 {[%clk 0:02:37]}  Ngf6 {[%clk 0:01:53]} 17. Nfd2 {[%clk 0:02:37]}  Qa4 {[%clk 0:01:29]} 18. d5 {[%clk 0:02:37]}  cxd5 {[%clk 0:01:12]} 19. cxd5 {[%clk 0:02:35]}  O-O {[%clk 0:00:46]} 20. d6 {[%clk 0:02:07]}  Bxd6 {[%clk 0:00:36]} 21. Bxf6 {[%clk 0:02:03]}  Nxf6 {[%clk 0:00:24]} 22. Nxd6 {[%clk 0:01:57]}  Bxb1 {[%clk 0:00:24]} 23. Rxb1 {[%clk 0:01:58]}  Qxa3 {[%clk 0:00:23]} 24. N2c4 {[%clk 0:01:52]}  Qc5 {[%clk 0:00:20]} 25. Rb5 {[%clk 0:01:51]}  Qd4 {[%clk 0:00:19]} 26. Rxb7 {[%clk 0:01:50]}  Rab8 {[%clk 0:00:18]} 27. Rc7 {[%clk 0:01:41]}  Rb1+ {[%clk 0:00:18]} 28. Bf1 {[%clk 0:01:39]}  Nd5 {[%clk 0:00:18]} 29. Nxf7 {[%clk 0:01:27]}  Nxc7 {[%clk 0:00:17]} 30. Nfe5 {[%clk 0:01:03]}  Nd5 {[%clk 0:00:16]} 31. Qg4 {[%clk 0:01:02]}  Qxf2+ {[%clk 0:00:16]} 32. Kh1 {[%clk 0:01:01]}  Qxf1# {[%clk 0:00:16]} 0-1


[Site "https://www.chess.com"]